fUST/lending_fUST_20241021
["ID","MTS","AMOUNT","RATE_DAILY","PERIOD"]
[340568687,1729502857723,-518.78932631,0.00016438,2]
[340568688,1729502857744,-500.0,0.00016438,2]
[340568689,1729502857767,-500.0,0.00016438,2]
[340568690,1729502857788,-2084.54,0.00016438,2]
[340568691,1729502857808,-500.0,0.00016438,2]
[340568692,1729502857829,-639.80314498,0.00016438,2]
[340568693,1729502857849,-500.0,0.00016438,2]
[340568694,1729502857869,-500.0,0.00016438,2]
[340568695,1729502857890,-571.14,0.00016438,2]
[340568696,1729502857911,-500.0,0.00016438,2]
[340568697,1729502857932,-500.0,0.00016438,2]
[340568698,1729502857955,-500.0,0.00016438,2]
[340568699,1729502857977,-500.0,0.00016438,2]
[340568700,1729502857998,-500.0,0.00016438,2]
[340568701,1729502858020,-1539.13,0.00016438,2]
[340568702,1729502858042,-500.0,0.00016438,2]
[340568703,1729502858064,-500.0,0.00016438,2]
[340568704,1729502858086,-1803.76,0.00016438,2]
[340568705,1729502858107,-478.81138161,0.00016438,2]
[340568706,1729502858131,-500.0,0.00016438,2]
[340568707,1729502858151,-1045.63,0.00016438,2]
[340568708,1729502858173,-592.78916304,0.00016438,2]
[340568709,1729502858195,-500.0,0.00016438,2]
[340568710,1729502858218,-500.0,0.00016438,2]
[340568711,1729502858239,-1427.25,0.00016438,2]
[340568712,1729502858260,-2632.25,0.00016438,2]
[340568713,1729502858281,-1169.07,0.00016438,2]
[340568714,1729502858303,-1070.14,0.00016438,2]
[340568715,1729502858325,-500.0,0.00016438,2]
[340568716,1729502858347,-500.0,0.00016438,2]
[340568717,1729502858369,-500.0,0.00016438,2]
[340568718,1729502858392,-500.0,0.00016438,2]
[340568719,1729502858416,-500.0,0.00016438,2]
[340568720,1729502858438,-500.0,0.00016438,2]
[340568721,1729502858460,-1196.13,0.00016438,2]
[340568722,1729502858481,-500.0,0.00016438,2]
[340568723,1729502858501,-500.0,0.00016438,2]
[340568724,1729502858522,-991.03,0.00016438,2]
[340568725,1729502858543,-772.76,0.00016438,2]
[340568726,1729502858564,-772.76,0.00016438,2]
[340568727,1729502858585,-772.76,0.00016438,2]
[340568728,1729502858606,-772.76,0.00016438,2]
[340568729,1729502858628,-772.76,0.00016438,2]
[340568730,1729502858649,-772.76,0.00016438,2]
[340568731,1729502858674,-772.76,0.00016438,2]
[340568732,1729502858695,-479.22892483,0.00016438,2]
[340568733,1729502858715,-772.76,0.00016438,2]
[340568734,1729502858735,-772.76,0.00016438,2]
[340568735,1729502858756,-500.0,0.00016438,2]
[340568736,1729502858775,-500.0,0.00016438,2]
[340568737,1729502858796,-772.76,0.00016438,2]
[340568738,1729502858816,-772.76,0.00016438,2]
[340568739,1729502858837,-772.76,0.00016438,2]
[340568740,1729502858856,-772.76,0.00016438,2]
[340568741,1729502858876,-2706.54,0.00016438,2]
[340568742,1729502858896,-772.76,0.00016438,2]
[340568743,1729502858917,-772.76,0.00016438,2]
[340568744,1729502858936,-772.76,0.00016438,2]
[340568745,1729502858957,-772.76,0.00016438,2]
[340568746,1729502858978,-772.76,0.00016438,2]
[340568747,1729502858998,-772.76,0.00016438,2]
[340568748,1729502859023,-772.76,0.00016438,2]
[340568749,1729502859044,-772.76,0.00016438,2]
[340568750,1729502859064,-963.9,0.00016438,2]
[340568751,1729502859084,-772.76,0.00016438,2]
[340568752,1729502859105,-500.0,0.00016438,2]
[340568753,1729502859125,-772.76,0.00016438,2]
[340568754,1729502859150,-772.92010925,0.00016438,2]
[340568755,1729502859171,-500.0,0.00016438,2]
[340568756,1729502859191,-500.0,0.00016438,2]
[340568757,1729502859213,-896.67,0.00016438,2]
[340568758,1729502859233,-500.0,0.00016438,2]
[340568759,1729502859253,-1541.31,0.00016438,2]
[340568760,1729502859273,-500.0,0.00016438,2]
[340568761,1729502859292,-2522.88,0.00016438,2]
[340568762,1729502859312,-500.0,0.00016438,2]
[340568763,1729502859332,-500.0,0.00016438,2]
[340568764,1729502859547,-500.0,0.00016438,2]
[340568765,1729502859573,-500.0,0.00016438,2]
[340568766,1729502859594,-664.96,0.00016438,2]
[340568767,1729502859614,-500.0,0.00016438,2]
[340568768,1729502859635,-2260.5,0.00016438,2]
[340568769,1729502859656,-500.0,0.00016438,2]
[340568770,1729502859677,-1782.49,0.00016438,2]
[340568771,1729502859698,-1138.17,0.00016438,2]
[340568772,1729502859718,-500.0,0.00016438,2]
[340568773,1729502859738,-822.36,0.00016438,2]
[340568774,1729502859759,-504.24894679,0.00016438,2]
[340568775,1729502859779,-500.0,0.00016438,2]
[340568776,1729502859800,-2263.96,0.00016438,2]
[340568777,1729502859820,-3201.56,0.00016438,2]
[340568778,1729502859841,-1923.96,0.00016438,2]
[340568779,1729502859861,-707.91,0.00016438,2]
[340568780,1729502859882,-500.0,0.00016438,2]
[340568781,1729502859903,-500.0,0.00016438,2]
[340568782,1729502859925,-753.67,0.00016438,2]
[340568783,1729502859945,-500.0,0.00016438,2]
[340568784,1729502859968,-500.0,0.00016438,2]
[340568785,1729502859989,-1918.16,0.00016438,2]
[340568786,1729502860010,-1668.46,0.00016438,2]
[340568787,1729502860030,-516.08289042,0.00016438,2]
[340568788,1729502860050,-500.0,0.00016438,2]
[340568789,1729502860070,-500.0,0.00016438,2]
[340568790,1729502860090,-301.64986435,0.00016438,2]
[340568791,1729502860111,-563.40433209,0.00016438,2]
[340568792,1729502860135,-500.0,0.00016438,2]
[340568793,1729502860155,-500.0,0.00016438,2]
[340568794,1729502860176,-608.72674358,0.00016438,2]
[340568795,1729502860198,-2276.44,0.00016438,2]
[340568796,1729502860221,-500.0,0.00016438,2]
[340568797,1729502860243,-500.0,0.00016438,2]
[340568798,1729502860264,-534.68585491,0.00016438,2]
[340568799,1729502860284,-472.3377829,0.00016438,2]
[340568800,1729502860305,-500.0,0.00016438,2]
[340568801,1729502860326,-1567.98,0.00016438,2]
[340568802,1729502860346,-1183.81,0.00016438,2]
[340568803,1729502860367,-500.0,0.00016438,2]
[340568804,1729502860387,-500.0,0.00016438,2]
[340568805,1729502860408,-500.0,0.00016438,2]
[340568806,1729502860429,-1034.69,0.00016438,2]
[340568807,1729502860449,-3561.51,0.00016438,2]
[340568808,1729502860470,-500.0,0.00016438,2]
[340568809,1729502860490,-500.0,0.00016438,2]
[340568810,1729502860511,-919.96,0.00016438,2]
[340568811,1729502860532,-920.74,0.00016438,2]
[340568812,1729502860553,-500.0,0.00016438,2]
[340568813,1729502860573,-500.0,0.00016438,2]
[340568814,1729502860593,-500.0,0.00016438,2]
[340568815,1729502860613,-240.52772073,0.00016438,2]
[340568816,1729502860634,-2579.12,0.00016438,2]
[340568817,1729502860655,-2401.43,0.00016438,2]
[340568818,1729502860677,-3165.19,0.00016438,2]
[340568819,1729502860698,-1277.13,0.00016438,2]
[340568820,1729502860721,-500.0,0.00016438,2]
[340568821,1729502860742,-500.0,0.00016438,2]
[340568822,1729502860762,-500.0,0.00016438,2]
[340568823,1729502860783,-500.0,0.00016438,2]
[340568824,1729502860803,-500.0,0.00016438,2]
[340568825,1729502860824,-500.0,0.00016438,2]
[340568826,1729502860845,-500.0,0.00016438,2]
[340568827,1729502860864,-500.0,0.00016438,2]
[340568828,1729502860885,-2083.93,0.00016438,2]
[340568829,1729502860906,-527.47626672,0.00016438,2]
[340568830,1729502860926,-2231.33,0.00016438,2]
[340568831,1729502860947,-1223.97,0.00016438,2]
[340568832,1729502860970,-500.0,0.00016438,2]
[340568833,1729502860992,-500.0,0.00016438,2]
[340568834,1729502861014,-970.01,0.00016438,2]
[340568835,1729502861034,-500.0,0.00016438,2]
[340568836,1729502861054,-500.0,0.00016438,2]
[340568837,1729502861075,-500.0,0.00016438,2]
[340568838,1729502861096,-500.0,0.00016438,2]
[340568839,1729502861117,-1838.14,0.00016438,2]
[340568840,1729502861141,-500.0,0.00016438,2]
[340568841,1729502861161,-1005.26,0.00016438,2]
[340568842,1729502861182,-1998.2,0.00016438,2]
[340568843,1729502861202,-500.0,0.00016438,2]
[340568844,1729502861226,-500.0,0.00016438,2]
[340568845,1729502861246,-500.0,0.00016438,2]
[340568846,1729502861268,-500.0,0.00016438,2]
[340568847,1729502861289,-500.0,0.00016438,2]
[340568848,1729502861310,-1860.08,0.00016438,2]
[340568849,1729502861330,-500.0,0.00016438,2]
[340568850,1729502861351,-500.0,0.00016438,2]
[340568851,1729502861371,-500.0,0.00016438,2]
[340568852,1729502861391,-1214.38,0.00016438,2]
[340568853,1729502861412,-609.63,0.00016438,2]
[340568854,1729502861434,-500.0,0.00016438,2]
[340568855,1729502861455,-500.0,0.00016438,2]
[340568856,1729502861476,-1960.9,0.00016438,2]
[340568857,1729502861503,-500.0,0.00016438,2]
[340568858,1729502861524,-500.0,0.00016438,2]
[340568859,1729502861545,-500.0,0.00016438,2]
[340568860,1729502861566,-500.0,0.00016438,2]
[340568861,1729502861587,-1199.08,0.00016438,2]
[340568862,1729502861607,-532.54863117,0.00016438,2]
[340568863,1729502861627,-500.0,0.00016438,2]
[340568864,1729502861648,-2048.61,0.00016438,2]
[340568865,1729502861669,-1846.49,0.00016438,2]
[340568866,1729502861693,-1280.59,0.00016438,2]
[340568867,1729502861714,-500.0,0.00016438,2]
[340568868,1729502861736,-1925.76,0.00016438,2]
[340568869,1729502861756,-500.0,0.00016438,2]
[340568870,1729502861777,-500.0,0.00016438,2]
[340568871,1729502861798,-500.0,0.00016438,2]
[340568872,1729502861822,-500.0,0.00016438,2]
[340568873,1729502861847,-500.0,0.00016438,2]
[340568874,1729502861867,-500.0,0.00016438,2]
[340568875,1729502861888,-500.0,0.00016438,2]
[340568876,1729502861911,-2184.31,0.00016438,2]
[340568877,1729502861936,-1902.87,0.00016438,2]
[340568878,1729502861957,-2763.58,0.00016438,2]
[340568879,1729502861982,-500.0,0.00016438,2]
[340568880,1729502862002,-500.0,0.00016438,2]
[340568881,1729502862024,-1878.33,0.00016438,2]
[340568882,1729502862045,-1016.88,0.00016438,2]
[340568883,1729502862065,-209.83762306,0.00016438,2]
[340568884,1729502862087,-271.56203779,0.00016438,2]
[340568885,1729502862108,-2223.77,0.00016438,2]
[340568886,1729502862134,-500.0,0.00016438,2]
[340568887,1729502862165,-500.0,0.00016438,2]
[340568888,1729502862189,-4504.07,0.00016438,2]
[340568889,1729502862210,-554.25381178,0.00016438,2]
[340568890,1729502862232,-2995.66,0.00016438,2]
[340568891,1729502862253,-500.0,0.00016438,2]
[340568892,1729502862276,-582.08173842,0.00016438,2]
[340568893,1729502862302,-500.0,0.00016438,2]
[340568894,1729502862323,-753.19,0.00016438,2]
[340568895,1729502862344,-2141.85,0.00016438,2]
[340568896,1729502862367,-500.0,0.00016438,2]
[340568897,1729502862388,-1423.5,0.00016438,2]
[340568898,1729502862410,-500.0,0.00016438,2]
[340568899,1729502862433,-500.0,0.00016438,2]
[340568900,1729502862457,-500.0,0.00016438,2]
[340568901,1729502862480,-695.47,0.00016438,2]
[340568902,1729502862504,-2053.73,0.00016438,2]
[340568903,1729502862526,-2266.77,0.00016438,2]
[340568904,1729502862548,-1891.48,0.00016438,2]
[340568905,1729502862571,-500.0,0.00016438,2]
[340568906,1729502862592,-297.01101299,0.00016438,2]
[340568907,1729502862614,-2194.47,0.00016438,2]
[340568908,1729502862636,-879.65,0.00016438,2]
[340568909,1729502862658,-1830.51,0.00016438,2]
[340568910,1729502862679,-500.0,0.00016438,2]
[340568911,1729502862701,-500.0,0.00016438,2]
[340568912,1729502862722,-500.0,0.00016438,2]
[340568913,1729502862744,-1597.4,0.00016438,2]
[340568914,1729502862765,-2020.84,0.00016438,2]
[340568915,1729502862787,-500.0,0.00016438,2]
[340568916,1729502862809,-4351.98,0.00016438,2]
[340568917,1729502862829,-500.0,0.00016438,2]
[340568918,1729502862849,-822.36,0.00016438,2]
[340568919,1729502862870,-3368.55,0.00016438,2]
[340568920,1729502862892,-1006.47,0.00016438,2]
[340568921,1729502862914,-500.0,0.00016438,2]
[340568922,1729502862934,-500.0,0.00016438,2]
[340568923,1729502862955,-500.0,0.00016438,2]
[340568924,1729502862976,-500.0,0.00016438,2]
[340568925,1729502863000,-500.0,0.00016438,2]
[340568926,1729502863020,-500.0,0.00016438,2]
[340568927,1729502863041,-500.0,0.00016438,2]
[340568928,1729502863065,-2408.13,0.00016438,2]
[340568929,1729502863086,-550.60071594,0.00016438,2]
[340568930,1729502863107,-1014.22,0.00016438,2]
[340568931,1729502863132,-1430.15,0.00016438,2]
[340568932,1729502863155,-928.38,0.00016438,2]
[340568933,1729502863179,-151.0,0.00016438,2]
[340568934,1729502863200,-151.0,0.00016438,2]
[340568935,1729502863223,-500.0,0.00016438,2]
[340568936,1729502863244,-1000.0,0.00016438,2]
[340568937,1729502863265,-1315.44,0.00016438,2]
[340568938,1729502863492,-500.0,0.00016438,2]
[340568939,1729502863515,-500.0,0.00016438,2]
[340568940,1729502863536,-1279.8,0.00016438,2]
[340568941,1729502863557,-500.0,0.00016438,2]
[340568942,1729502863579,-500.0,0.00016438,2]
[340568943,1729502863601,-904.65,0.00016438,2]
[340568944,1729502863622,-914.69,0.00016438,2]
[340568945,1729502863648,-1872.38,0.00016438,2]
[340568946,1729502863670,-500.0,0.00016438,2]
[340568947,1729502863692,-500.0,0.00016438,2]
[340568948,1729502863714,-1663.82,0.00016438,2]
[340568949,1729502863735,-1359.76,0.00016438,2]
[340568950,1729502863757,-2089.68,0.00016438,2]
[340568951,1729502863779,-500.0,0.00016438,2]
[340568952,1729502863801,-2472.28,0.00016438,2]
[340568953,1729502863822,-500.0,0.00016438,2]
[340568954,1729502863844,-2256.57,0.00016438,2]
[340568955,1729502863867,-5239.67,0.00016438,2]
[340568956,1729502863888,-2432.22,0.00016438,2]
[340568957,1729502863910,-1370.87,0.00016438,2]
[340568958,1729502863931,-14397.35,0.00016438,2]
[340568959,1729502863954,-713.29,0.00016438,2]
[340568960,1729502863976,-500.0,0.00016438,2]
[340568961,1729502863997,-502.32529539,0.00016438,2]
[340568962,1729502864018,-500.0,0.00016438,2]
[340568963,1729502864039,-500.0,0.00016438,2]
[340568964,1729502864060,-500.0,0.00016438,2]
[340568965,1729502864082,-554.4,0.00016438,2]
[340568966,1729502864103,-1209.5,0.00016438,2]
[340568967,1729502864125,-1474.18,0.00016438,2]
[340568968,1729502864149,-4383.87,0.00016438,2]
[340568969,1729502864173,-9317.52,0.00016438,2]
[340568970,1729502864197,-408.76376236,0.00016438,2]
[340568971,1729502864220,-500.0,0.00016438,2]
[340568972,1729502864242,-255.19385734,0.00016438,2]
[340568973,1729502864263,-777.7,0.00016438,2]
[340568974,1729502864284,-2735.37,0.00016438,2]
[340568975,1729502864307,-500.0,0.00016438,2]
[340568976,1729502864329,-3774.33,0.00016438,2]
[340568977,1729502864351,-564.47136063,0.00016438,2]
[340568978,1729502864373,-1212.07,0.00016438,2]
[340568979,1729502864399,-876.84,0.00016438,2]
[340568980,1729502864422,-500.0,0.00016438,2]
[340568981,1729502864445,-251.746443,0.00016438,2]
[340568982,1729502864468,-500.0,0.00016438,2]
[340568983,1729502864490,-500.0,0.00016438,2]
[340568984,1729502864513,-251.746443,0.00016438,2]
[340568985,1729502864535,-813.49,0.00016438,2]
[340568986,1729502864557,-1783.69,0.00016438,2]
[340568987,1729502864580,-1442.37,0.00016438,2]
[340568988,1729502864602,-500.0,0.00016438,2]
[340568989,1729502864624,-500.0,0.00016438,2]
[340568990,1729502864646,-514.51518588,0.00016438,2]
[340568991,1729502864669,-251.746443,0.00016438,2]
[340568992,1729502864692,-251.746435,0.00016438,2]
[340568993,1729502864714,-548.36,0.00016438,2]
[340568994,1729502864736,-2794.25,0.00016438,2]
[340568995,1729502864759,-2964.65,0.00016438,2]
[340568996,1729502864782,-1621.62,0.00016438,2]
[340568997,1729502864804,-6273.46,0.00016438,2]
[340568998,1729502864825,-500.0,0.00016438,2]
[340568999,1729502864847,-1565.51,0.00016438,2]
[340569000,1729502864869,-3835.4,0.00016438,2]
[340569001,1729502864901,-1609.94,0.00016438,2]
[340569002,1729502864926,-830.7,0.00016438,2]
[340569003,1729502864949,-644.36,0.00016438,2]
[340569004,1729502864973,-1115.16,0.00016438,2]
[340569005,1729502864995,-507.9,0.00016438,2]
[340569006,1729502865017,-500.0,0.00016438,2]
[340569007,1729502865039,-1475.99,0.00016438,2]
[340569008,1729502865061,-252.33796374,0.00016438,2]
[340569009,1729502865083,-1246.78,0.00016438,2]
[340569010,1729502865104,-758.78,0.00016438,2]
[340569011,1729502865126,-1050.4,0.00016438,2]
[340569012,1729502865152,-1810.47,0.00016438,2]
[340569013,1729502865174,-500.0,0.00016438,2]
[340569014,1729502865197,-535.06931303,0.00016438,2]
[340569015,1729502865220,-500.0,0.00016438,2]
[340569016,1729502865243,-500.0,0.00016438,2]
[340569017,1729502865264,-500.0,0.00016438,2]
[340569018,1729502865287,-151.0,0.00016438,2]
[340569019,1729502865311,-151.0,0.00016438,2]
[340569020,1729502865333,-500.0,0.00016438,2]
[340569021,1729502865357,-500.0,0.00016438,2]
[340569022,1729502865379,-831.66,0.00016438,2]
[340569023,1729502865401,-500.0,0.00016438,2]
[340569024,1729502865429,-500.0,0.00016438,2]
[340569025,1729502865450,-500.0,0.00016438,2]
[340569026,1729502865471,-511.98649675,0.00016438,2]
[340569027,1729502865493,-500.0,0.00016438,2]
[340569028,1729502865515,-988.8,0.00016438,2]
[340569029,1729502865538,-1253.03,0.00016438,2]
[340569030,1729502865560,-500.0,0.00016438,2]
[340569031,1729502865582,-500.0,0.00016438,2]
[340569032,1729502865604,-500.0,0.00016438,2]
[340569033,1729502865626,-509.17284171,0.00016438,2]
[340569034,1729502865648,-500.0,0.00016438,2]
[340569035,1729502865672,-1640.1,0.00016438,2]
[340569036,1729502865694,-500.0,0.00016438,2]
[340569037,1729502865717,-670.3,0.00016438,2]
[340569038,1729502865738,-500.0,0.00016438,2]
[340569039,1729502865759,-1024.69,0.00016438,2]
[340569040,1729502865781,-500.0,0.00016438,2]
[340569041,1729502865803,-500.0,0.00016438,2]
[340569042,1729502865823,-764.56,0.00016438,2]
[340569043,1729502865844,-374.10612471,0.00016438,2]
[340569044,1729502865866,-500.0,0.00016438,2]
[340569045,1729502865888,-500.0,0.00016438,2]
[340569046,1729502865909,-1612.75,0.00016438,2]
[340569047,1729502865933,-34492.9,0.00016438,2]
[340569048,1729502865961,-814.43,0.00016438,2]
[340569049,1729502865984,-3366.73,0.00016438,2]
[340569050,1729502866006,-500.0,0.00016438,2]
[340569051,1729502866030,-17555.65,0.00016438,2]
[340569052,1729502866051,-500.0,0.00016438,2]
[340569053,1729502866073,-500.0,0.00016438,2]
[340569054,1729502866095,-2503.29,0.00016438,2]
[340569055,1729502866117,-500.0,0.00016438,2]
[340569056,1729502866146,-1152.63,0.00016438,2]
[340569057,1729502866169,-500.0,0.00016438,2]
[340569058,1729502866190,-1070.34,0.00016438,2]
[340569059,1729502866211,-9327.24,0.00016438,2]
[340569060,1729502866234,-500.0,0.00016438,2]
[340569061,1729502866256,-1476.34,0.00016438,2]
[340569062,1729502866278,-2046.47,0.00016438,2]
[340569063,1729502866300,-500.0,0.00016438,2]
[340569064,1729502866320,-500.0,0.00016438,2]
[340569065,1729502866342,-151.0,0.00016438,2]
[340569066,1729502866364,-151.0,0.00016438,2]
[340569067,1729502866386,-151.0,0.00016438,2]
[340569068,1729502866410,-250.357496,0.00016438,2]
[340569069,1729502866431,-500.0,0.00016438,2]
[340569070,1729502866452,-509.4,0.00016438,2]
[340569071,1729502866474,-500.0,0.00016438,2]
[340569072,1729502866496,-1253.82,0.00016438,2]
[340569073,1729502866517,-500.0,0.00016438,2]
[340569074,1729502866539,-976.94,0.00016438,2]
[340569075,1729502866560,-500.0,0.00016438,2]
[340569076,1729502866581,-500.0,0.00016438,2]
[340569077,1729502866603,-1358.77,0.00016438,2]
[340569078,1729502866625,-738.82,0.00016438,2]
[340569079,1729502866647,-2358.7,0.00016438,2]
[340569080,1729502866669,-1726.48,0.00016438,2]
[340569081,1729502866689,-500.0,0.00016438,2]
[340569082,1729502866710,-500.0,0.00016438,2]
[340569083,1729502866731,-1345.58,0.00016438,2]
[340569084,1729502866752,-1056.61,0.00016438,2]
[340569085,1729502866773,-774.85,0.00016438,2]
[340569086,1729502866794,-500.0,0.00016438,2]
[340569087,1729502866824,-1887.58,0.00016438,2]
[340569088,1729502866844,-500.0,0.00016438,2]
[340569089,1729502866865,-1830.24,0.00016438,2]
[340569090,1729502866886,-500.0,0.00016438,2]
[340569091,1729502866907,-500.0,0.00016438,2]
[340569092,1729502866928,-500.0,0.00016438,2]
[340569093,1729502866950,-701.42,0.00016438,2]
[340569094,1729502866972,-500.0,0.00016438,2]
[340569095,1729502866995,-1470.66,0.00016438,2]
[340569096,1729502867016,-766.45,0.00016438,2]
[340569097,1729502867038,-750.06,0.00016438,2]
[340569098,1729502867060,-500.0,0.00016438,2]
[340569099,1729502867083,-937.02,0.00016438,2]
[340569100,1729502867104,-1658.61,0.00016438,2]
[340569101,1729502867126,-519.74749711,0.00016438,2]
[340569102,1729502867152,-500.0,0.00016438,2]
[340569103,1729502867173,-1462.79,0.00016438,2]
[340569104,1729502867195,-500.0,0.00016438,2]
[340569105,1729502867220,-982.97,0.00016438,2]
[340569106,1729502867242,-500.0,0.00016438,2]
[340569107,1729502867264,-500.0,0.00016438,2]
[340569108,1729502867285,-500.0,0.00016438,2]
[340569109,1729502867307,-4790.94,0.00016438,2]
[340569110,1729502867328,-530.34218103,0.00016438,2]
[340569111,1729502867350,-500.0,0.00016438,2]
[340569112,1729502867372,-2181.0,0.00016438,2]
[340569113,1729502867614,-500.0,0.00016438,2]
[340569114,1729502867636,-612.25,0.00016438,2]
[340569115,1729502867657,-500.0,0.00016438,2]
[340569116,1729502867680,-2041.92,0.00016438,2]
[340569117,1729502867702,-500.0,0.00016438,2]
[340569118,1729502867723,-1212.02,0.00016438,2]
[340569119,1729502867744,-1801.67,0.00016438,2]
[340569120,1729502867765,-822.56,0.00016438,2]
[340569121,1729502867786,-500.0,0.00016438,2]
[340569122,1729502867807,-3380.87,0.00016438,2]
[340569123,1729502867828,-500.0,0.00016438,2]
[340569124,1729502867849,-500.0,0.00016438,2]
[340569125,1729502867870,-289.18080792,0.00016438,2]
[340569126,1729502867891,-1751.38,0.00016438,2]
[340569127,1729502867914,-4122.08,0.00016438,2]
[340569128,1729502867935,-500.0,0.00016438,2]
[340569129,1729502867957,-523.47586706,0.00016473,2]
[340569130,1729502867979,-500.0,0.00016473,2]
[340569131,1729502868000,-500.0,0.00016574,2]
[340569132,1729502868023,-299.93941068,0.00016679,2]
[340569133,1729502868052,-500.0,0.00016712,2]
[340569134,1729502868074,-500.0,0.00016712,2]
[340569135,1729502868096,-500.0,0.00016712,2]
[340569136,1729502868118,-500.0,0.00016712,2]
[340569137,1729502868143,-500.0,0.00016712,2]
[340569138,1729502868167,-500.0,0.00016712,2]
[340569139,1729502868190,-500.0,0.00016712,2]
[340569140,1729502868213,-500.0,0.00016712,2]
[340569141,1729502868236,-876.24,0.00016712,2]
[340569142,1729502868260,-500.0,0.00016712,2]
[340569143,1729502868282,-500.0,0.00016712,2]
[340569144,1729502868305,-500.0,0.00016712,2]
[340569145,1729502868327,-543.52,0.00016712,2]
[340569146,1729502868349,-500.0,0.00016712,2]
[340569147,1729502868372,-500.0,0.00016712,2]
[340569148,1729502868395,-174.33176143,0.00016712,2]
[340569149,1729502868419,-500.0,0.00016712,2]
[340569150,1729502868443,-500.0,0.00016712,2]
[340569151,1729502868467,-500.0,0.00016712,2]
[340569152,1729502868490,-500.0,0.00016712,2]
[340569153,1729502868513,-508.11517119,0.00016712,2]
[340569154,1729502868536,-500.0,0.00016712,2]
[340569155,1729502868559,-1299.83,0.00016712,2]
[340569156,1729502868582,-500.0,0.00016712,2]
[340569157,1729502868604,-500.0,0.00016712,2]
[340569158,1729502868627,-500.0,0.00016712,2]
[340569159,1729502868650,-500.0,0.00016712,2]
[340569160,1729502868673,-500.0,0.00016712,2]
[340569161,1729502868695,-500.0,0.00016712,2]
[340569162,1729502868717,-2111.68,0.00016712,2]
[340569163,1729502868739,-500.0,0.00016712,2]
[340569164,1729502868760,-500.0,0.00016712,2]
[340569165,1729502868782,-500.0,0.00016712,2]
[340569166,1729502868804,-500.0,0.00016712,2]
[340569167,1729502868825,-500.0,0.00016712,2]
[340569168,1729502868846,-500.0,0.00016712,2]
[340569169,1729502868869,-500.0,0.00016712,2]
[340569170,1729502868890,-500.0,0.00016712,2]
[340569171,1729502868913,-500.0,0.00016712,2]
[340569172,1729502868936,-500.0,0.00016712,2]
[340569173,1729502868959,-500.0,0.00016712,2]
[340569174,1729502868982,-500.0,0.00016712,2]
[340569175,1729502869006,-500.0,0.00016712,2]
[340569176,1729502869028,-500.0,0.00016712,2]
[340569177,1729502869055,-500.0,0.00016712,2]
[340569178,1729502869077,-500.0,0.00016712,2]
[340569179,1729502869099,-500.0,0.00016712,2]
[340569180,1729502869121,-1250.75,0.00016712,2]
[340569181,1729502869146,-500.0,0.00016712,2]
[340569182,1729502869170,-500.0,0.00016712,2]
[340569183,1729502869192,-500.0,0.00016712,2]
[340569184,1729502869214,-500.0,0.00016712,2]
[340569185,1729502869238,-514.55672728,0.00016712,2]
[340569186,1729502869260,-500.0,0.00016712,2]